Workbook

Sheet PROJECT INFO
A1: PROJECT INFORMATION
A3: PROJECT/PID: | B3: 08326 - SUM-8-0175
A4: INTERSECTION NAME: | B4: Perkins St at Ramp I/Goodkirk St
A5: STUDY DATE: | B5: 2020-08-18

Sheet MAST ARM HEIGHT
A1: SUPPORT NO. | B1: ARM | C1: MIN CLEARANCE FROM PAVEMENT TO BOTTOM OF SIGNAL HEAD | D1: MAX CLEARANCE FROM PAVEMENT TO BOTTOM OF SIGNAL HEAD | E1: FOUNDATION ELEVATION AT GROUND LEVEL | F1: DISTANCE FROM GROUND TO FOUNDATION | G1: ELEVATION B TOP OF FOUNDATION | H1: RISE ANGLE WITH HORIZONTAL ARM TIP | I1: SIGNAL HEADS CENTERED ON WHICH COLOR? | J1: SIGNAL NO. | K1: SIGNAL HEAD TYPE (12 IN. SECTIONS WITH BACKPLATES) | L1: DISTANCE FROM BOTTOM OF SIGNAL HEAD TO CENTER OF MAST ARM (TEM 497-6) | M1: SIGNAL HEAD DISTANCE FROM SUPPORT POLE | N1: ELEVATION A PAVEMENT ELEVATION UNDER SIGNAL HEAD OR SIGN | O1: MINIMUM HEIGHT (FOUNDATION TO MAST ARM) | P1: MAXIMUM HEIGHT (FOUNDATION TO MAST ARM) | Q1: MINIMUM ALLOWABLE HEIGHT (FOUNDATION TO MAST ARM) | R1: MAXIMUM ALLOWABLE HEIGHT (FOUNDATION TO MAST ARM) | S1: FINAL ATTACHMENT ARM HEIGHT (FOUNDATION TO MAST ARM) | T1: DOES MAST ARM HAVE POLE EXTENSION? ^ | U1: HEIGHT FROM MAST ARM TO TOP OF POLE | V1: SUGGESTED POLE HEIGHT | W1: POLE HEIGHT WITH 10' EXTENSION
C2: FT | D2: FT | E2: FT | F2: IN | G2: FT | H2: DEGREE | L2: FT | M2: FT | N2: FT | O2: FT | P2: FT | Q2: FT | R2: FT | S2: FT | U2: FT | V2: FT | W2: FT | AB2: -
A3: SP-1 | B3: A | C3: 17 | D3: 19 | E3: 1049.49 | F3: 0 | G3: =IF(E3="-","-",$E3+($F3/12)) -> 1049.49 | H3: 0.5 | I3: YELLOW | J3: 6A | K3: 3 SECTIONS | L3: =IF($I$3="-","-",VLOOKUP(K3,$AD$5:$AF$15,MATCH($I$3,$AE$4:$AF$4)+1)) -> 2.3 | M3: 32 | N3: 1049.5 | O3: =IF(M3="-","-",($C$3+$L3+$N3-(SIN(RADIANS($H$3))*$M3))-$G$3) -> 19.03075086 | P3: =IF(M3="-","-",($D$3+$L3+$N3-(SIN(RADIANS($H$3))*$M3))-$G$3) -> 21.03075086 | Q3: =IF(O3="-","-",(MAX(O3:O10))) -> 19.14749362 | R3: =IF(P3="-","-",MIN(P3:P10)) -> 20.95221204 | S3: 20 | T3: YES | U3: =IF($T3="YES",5,IF($T3="NO",1.5,"-")) -> 5 | V3: =IF(T3="-","-",$S3+$U3) -> 25 | W3: =IF($T3="YES",V3+10,IF($T3="NO","N/A","-")) -> 35 | AA3: - | AB3: SP-1
J4: 6B | K4: 3 SECTIONS | L4: 2.3 | M4: 41 | N4: 1049.5 | O4: 18.95221204 | P4: 20.95221204 | AA4: YELLOW | AB4: SP-2 | AE4: RED | AF4: YELLOW
J5: 1 | K5: 5 SECTIONS - CLUSTER | L5: 2.6 | M5: 53 | N5: 1049.5 | O5: 19.14749362 | P5: 21.14749362 | AA5: RED | AB5: SP-3 | AD5: - | AE5: - | AF5: -
J6: - | K6: - | L6: - | M6: - | N6: - | O6: - | P6: - | AB6: SP-4 | AD6: 1 SECTION | AE6: 0 | AF6: 0
J7: - | K7: - | L7: - | M7: - | N7: - | O7: - | P7: - | AA7: - | AB7: SP-5 | AD7: 2 SECTIONS | AE7: 2.625 | AF7: 1.625
J8: - | K8: - | L8: - | M8: - | N8: - | O8: - | P8: - | AA8: YES | AB8: SP-6 | AD8: 3 SECTIONS | AE8: 3.4 | AF8: 2.3
J9: - | K9: - | L9: - | M9: - | N9: - | O9: - | P9: - | AA9: NO | AB9: SP-7 | AD9: 4 SECTIONS | AE9: 4.6 | AF9: 3.4
J10: - | K10: - | L10: - | M10: - | N10: - | O10: - | P10: - | AB10: SP-8 | AD10: 5 SECTIONS - CLUSTER | AE10: 3.7 | AF10: 2.6
A11: SP-2 | B11: A | C11: 17 | D11: 19 | E11: 1053.3 | F11: 0 | G11: =IF(E11="-","-",$E11+($F11/12)) -> 1053.3 | H11: 0.5 | I11: YELLOW | J11: 2A | K11: 3 SECTIONS | L11: =IF($I$11="-","-",VLOOKUP(K11,$AD$5:$AF$15,MATCH($I$11,$AE$4:$AF$4)+1)) -> 2.3 | M11: 24 | N11: 1052.8 | O11: =IF(M11="-","-",($C$11+$L11+$N11-(SIN(RADIANS($H$11))*$M11))-$G$11) -> 18.59056315 | P11: =IF(M11="-","-",($D$11+$L11+$N11-(SIN(RADIANS($H$11))*$M11))-$G$11) -> 20.59056315 | Q11: =IF(O11="-","-",(MAX(O11:O15))) -> 18.59056315 | R11: =IF(P11="-","-",MIN(P11:P15)) -> 20.48584472 | S11: 20 | T11: YES | U11: =IF($T11="YES",5,IF($T11="NO",1.5,"-")) -> 5 | V11: =IF(T11="-","-",$S11+$U11) -> 25 | W11: =IF($T11="YES",V11+10,IF($T11="NO","N/A","-")) -> 35 | AA11: - | AB11: SP-9 | AD11: 5 SECTIONS - MIXED | AE11: 3.7 | AF11: 2.6
J12: 2B | K12: 3 SECTIONS | L12: =IF($I$11="-","-",VLOOKUP(K12,$AD$5:$AF$15,MATCH($I$11,$AE$4:$AF$4)+1)) -> 2.3 | M12: 36 | N12: 1052.8 | O12: =IF(M12="-","-",($C$11+$L12+$N12-(SIN(RADIANS($H$11))*$M12))-$G$11) -> 18.48584472 | P12: =IF(M12="-","-",($D$11+$L12+$N12-(SIN(RADIANS($H$11))*$M12))-$G$11) -> 20.48584472 | AA12: 0 | AB12: SP-10 | AD12: 5 SECTIONS - VERTICAL | AE12: 5.8 | AF12: 4.6
J13: - | K13: - | L13: =IF($I$11="-","-",VLOOKUP(K13,$AD$5:$AF$15,MATCH($I$11,$AE$4:$AF$4)+1)) -> - | M13: - | N13: - | O13: =IF(M13="-","-",($C$11+$L13+$N13-(SIN(RADIANS($H$11))*$M13))-$G$11) -> - | P13: =IF(M13="-","-",($D$11+$L13+$N13-(SIN(RADIANS($H$11))*$M13))-$G$11) -> - | AA13: 0.5 | AB13: SP-11
J14: - | K14: - | L14: =IF($I$11="-","-",VLOOKUP(K14,$AD$5:$AF$15,MATCH($I$11,$AE$4:$AF$4)+1)) -> - | M14: - | N14: - | O14: =IF(M14="-","-",($C$11+$L14+$N14-(SIN(RADIANS($H$11))*$M14))-$G$11) -> - | P14: =IF(M14="-","-",($D$11+$L14+$N14-(SIN(RADIANS($H$11))*$M14))-$G$11) -> - | AA14: 1 | AB14: SP-12
J15: - | K15: - | L15: =IF($I$11="-","-",VLOOKUP(K15,$AD$5:$AF$15,MATCH($I$11,$AE$4:$AF$4)+1)) -> - | M15: - | N15: - | O15: =IF(M15="-","-",($C$11+$L15+$N15-(SIN(RADIANS($H$11))*$M15))-$G$11) -> - | P15: =IF(M15="-","-",($D$11+$L15+$N15-(SIN(RADIANS($H$11))*$M15))-$G$11) -> - | AA15: 1.5 | AB15: SP-13
A16: SP-2 | B16: B | C16: 17 | D16: 19 | E16: 1053.3 | F16: 0 | G16: =IF(E16="-","-",$E16+($F16/12)) -> 1053.3 | H16: 0.5 | I16: YELLOW | J16: 4A | K16: 3 SECTIONS | L16: =IF($I$16="-","-",VLOOKUP(K16,$AD$5:$AF$15,MATCH($I$16,$AE$4:$AF$4)+1)) -> 2.3 | M16: 25 | N16: 1051.7 | O16: =IF(M16="-","-",($C$16+$L16+$N16-(SIN(RADIANS($H$16))*$M16))-$G$16) -> 17.48183661 | P16: =IF(M16="-","-",($D$16+$L16+$N16-(SIN(RADIANS($H$16))*$M16))-$G$16) -> 19.48183661 | Q16: =IF(O16="-","-",(MAX(O16:O20))) -> 17.48183661 | R16: =IF(P16="-","-",MIN(P16:P20)) -> 19.32475897 | S16: 20 | T16: YES | U16: =IF($T16="YES",5,IF($T16="NO",1.5,"-")) -> 5 | V16: =IF(T16="-","-",$S16+$U16) -> 25 | W16: =IF($T16="YES",V16+10,IF($T16="NO","N/A","-")) -> 35 | AA16: 2 | AB16: SP-14
J17: 4B | K17: 3 SECTIONS | L17: =IF($I$16="-","-",VLOOKUP(K17,$AD$5:$AF$15,MATCH($I$16,$AE$4:$AF$4)+1)) -> 2.3 | M17: 33 | N17: 1051.7 | O17: =IF(M17="-","-",($C$16+$L17+$N17-(SIN(RADIANS($H$16))*$M17))-$G$16) -> 17.41202433 | P17: =IF(M17="-","-",($D$16+$L17+$N17-(SIN(RADIANS($H$16))*$M17))-$G$16) -> 19.41202433 | AA17: 2.5 | AB17: SP-15
J18: 4C | K18: 3 SECTIONS | L18: =IF($I$16="-","-",VLOOKUP(K18,$AD$5:$AF$15,MATCH($I$16,$AE$4:$AF$4)+1)) -> 2.3 | M18: 43 | N18: 1051.7 | O18: =IF(M18="-","-",($C$16+$L18+$N18-(SIN(RADIANS($H$16))*$M18))-$G$16) -> 17.32475897 | P18: =IF(M18="-","-",($D$16+$L18+$N18-(SIN(RADIANS($H$16))*$M18))-$G$16) -> 19.32475897 | AA18: 3 | AB18: -
J19: - | K19: - | L19: =IF($I$16="-","-",VLOOKUP(K19,$AD$5:$AF$15,MATCH($I$16,$AE$4:$AF$4)+1)) -> - | M19: - | N19: - | O19: =IF(M19="-","-",($C$16+$L19+$N19-(SIN(RADIANS($H$16))*$M19))-$G$16) -> - | P19: =IF(M19="-","-",($D$16+$L19+$N19-(SIN(RADIANS($H$16))*$M19))-$G$16) -> - | AB19: A
J20: - | K20: - | L20: =IF($I$16="-","-",VLOOKUP(K20,$AD$5:$AF$15,MATCH($I$16,$AE$4:$AF$4)+1)) -> - | M20: - | N20: - | O20: =IF(M20="-","-",($C$16+$L20+$N20-(SIN(RADIANS($H$16))*$M20))-$G$16) -> - | P20: =IF(M20="-","-",($D$16+$L20+$N20-(SIN(RADIANS($H$16))*$M20))-$G$16) -> - | AB20: B
A21: - | B21: - | C21: 17 | D21: 19 | E21: - | F21: - | G21: =IF(E21="-","-",$E21+($F21/12)) -> - | H21: - | I21: - | J21: - | K21: - | L21: =IF($I$21="-","-",VLOOKUP(K21,$AD$5:$AF$15,MATCH($I$21,$AE$4:$AF$4)+1)) -> - | M21: - | N21: - | O21: =IF(M21="-","-",($C$21+$L21+$N21-(SIN(RADIANS($H$21))*$M21))-$G$21) -> - | P21: =IF(M21="-","-",($D$21+$L21+$N21-(SIN(RADIANS($H$21))*$M21))-$G$21) -> - | Q21: =IF(O21="-","-",(MAX(O21:O25))) -> - | R21: =IF(P21="-","-",MIN(P21:P25)) -> - | S21: - | T21: - | U21: =IF($T21="YES",5,IF($T21="NO",1.5,"-")) -> - | V21: =IF(T21="-","-",$S21+$U21) -> - | W21: =IF($T21="YES",V21+10,IF($T21="NO","N/A","-")) -> - | AB21: C
J22: - | K22: - | L22: =IF($I$21="-","-",VLOOKUP(K22,$AD$5:$AF$15,MATCH($I$21,$AE$4:$AF$4)+1)) -> - | M22: - | N22: - | O22: =IF(M22="-","-",($C$21+$L22+$N22-(SIN(RADIANS($H$21))*$M22))-$G$21) -> - | P22: =IF(M22="-","-",($D$21+$L22+$N22-(SIN(RADIANS($H$21))*$M22))-$G$21) -> - | AB22: D
J23: - | K23: - | L23: =IF($I$21="-","-",VLOOKUP(K23,$AD$5:$AF$15,MATCH($I$21,$AE$4:$AF$4)+1)) -> - | M23: - | N23: - | O23: =IF(M23="-","-",($C$21+$L23+$N23-(SIN(RADIANS($H$21))*$M23))-$G$21) -> - | P23: =IF(M23="-","-",($D$21+$L23+$N23-(SIN(RADIANS($H$21))*$M23))-$G$21) -> -
J24: - | K24: - | L24: =IF($I$21="-","-",VLOOKUP(K24,$AD$5:$AF$15,MATCH($I$21,$AE$4:$AF$4)+1)) -> - | M24: - | N24: - | O24: =IF(M24="-","-",($C$21+$L24+$N24-(SIN(RADIANS($H$21))*$M24))-$G$21) -> - | P24: =IF(M24="-","-",($D$21+$L24+$N24-(SIN(RADIANS($H$21))*$M24))-$G$21) -> -
J25: - | K25: - | L25: =IF($I$21="-","-",VLOOKUP(K25,$AD$5:$AF$15,MATCH($I$21,$AE$4:$AF$4)+1)) -> - | M25: - | N25: - | O25: =IF(M25="-","-",($C$21+$L25+$N25-(SIN(RADIANS($H$21))*$M25))-$G$21) -> - | P25: =IF(M25="-","-",($D$21+$L25+$N25-(SIN(RADIANS($H$21))*$M25))-$G$21) -> -
A26: ^ With typical extension, 5' is calculated, as per SCD TC-85.22.
A27: Note: Final Pole Height will be noted in the plans on Mast Arm Design Table

Sheet MAST ARM DESIGN NO.
A1: SUPPORT NO. | B1: ARM | C1: NUMBER OF LUMINAIRES OR BRACKET ARMS | D1: LUMINAIRE/ BRACKET ARM LENGTH | E1: SIGNAL OR SIGN? | F1: SIGNAL/ SIGN NO. | G1: ATTACHMENT DISTANCE FROM SUPPORT POLE | I1: SIGNAL HEAD TYPE (12 IN. LENS) | J1: SIGN SIZE | L1: AREA | M1: ATTACHMENT LENGTH * AREA | N1: L | O1: DAMPER REQUIRED? (Incidental to Support item; CM&S 632 and SCD TC-81.22) | P1: K | Q1: DESIGN NO.
N2: TOTAL MAST ARM LENGTH | P2: AREA MOMENT DESIGN FACTOR | AH2: Number of Luminaires or Bracket Arms: Must select value (0-2)
D3: FT | G3: NO. | H3: FT | J3: IN | L3: SQ. FT. | N3: FT
A4: ='MAST ARM HEIGHT'!A3 -> SP-1 | B4: ='MAST ARM HEIGHT'!B3 -> A | C4: 1 | D4: 20 | E4: SIGNAL | F4: =IF($E4="SIGNAL",INDEX('MAST ARM HEIGHT'!J3:J10,COUNTIF($E4,"SIGNAL")),"-") -> 6A | G4: L1 | H4: =IF(E4="SIGNAL",INDEX('MAST ARM HEIGHT'!M3:M10,COUNTIF(E4,"SIGNAL")),"-") -> 32 | I4: =IF(E4="SIGNAL",INDEX('MAST ARM HEIGHT'!K3:K10,COUNTIF(E4,"SIGNAL")),"-") -> 3 SECTIONS | J4: - | K4: - | L4: =IF(E4="SIGNAL",VLOOKUP(I4,$T$5:$U$12,2),IF(E4="SIGN",(J4*K4)/144,"-")) -> 8.7 | M4: =IF(E4="-","-",H4*L4) -> 278.4 | N4: 56 | O4: =IF(N4="-","-",IF(N4>59,"YES","NO")) -> NO | P4: =IF($C4=2,(D4+D8)*3+(SUMIF($M4:$M11,"<>-")),IF($C4=1,$D4*3+(SUMIF($M4:$M11,"<>-")),IF($C4=0,SUMIF($M4:$M11,"<>-"),"-"))) -> 1664.175 | Q4: =IF($P4="-","-",IF($P4<=$Z$23,VLOOKUP($Z$23,$AA$4:$AB$11,2),$AA$23)) -> 13 | S4: - | U4: 12 | AD4: K | AE4: DESIGN NO. | AF4: MAX ARM LENGTH (FT)
E5: SIGNAL | F5: =IF($E5="SIGNAL",INDEX('MAST ARM HEIGHT'!J3:J10,COUNTIF($E4:$E5,"SIGNAL")),"-") -> 6B | G5: L2 | H5: =IF($E5="SIGNAL",INDEX('MAST ARM HEIGHT'!M3:M10,COUNTIF($E4:$E5,"SIGNAL")),"-") -> 41 | I5: =IF($E5="SIGNAL",INDEX('MAST ARM HEIGHT'!K3:K10,COUNTIF($E4:$E5,"SIGNAL")),"-") -> 3 SECTIONS | J5: - | K5: - | L5: 8.7 | M5: 356.7 | S5: 8 | T5: - | U5: - | AA5: 787.5 | AB5: 2 | AD5: 2641 | AE5: 14 | AF5: 70
E6: SIGNAL | F6: =IF($E6="SIGNAL",INDEX('MAST ARM HEIGHT'!J3:J10,COUNTIF($E4:$E6,"SIGNAL")),"-") -> 1 | G6: L3 | H6: =IF($E6="SIGNAL",INDEX('MAST ARM HEIGHT'!M3:M10,COUNTIF($E4:$E6,"SIGNAL")),"-") -> 53 | I6: =IF($E6="SIGNAL",INDEX('MAST ARM HEIGHT'!K3:K10,COUNTIF($E4:$E6,"SIGNAL")),"-") -> 5 SECTIONS - CLUSTER | J6: - | K6: - | L6: 12.4 | M6: 657.2 | S6: 12 | T6: 1 SECTION | U6: 4 | AD6: 2380 | AE6: 13 | AF6: 60
E7: SIGN | F7: S1 | G7: L4 | H7: 11 | I7: =IF($E7="SIGNAL",INDEX('MAST ARM HEIGHT'!K3:K10,COUNTIF($E4:$E7,"SIGNAL")),"-") -> - | J7: 102 | K7: 24 | L7: 17 | M7: 187 | T7: 2 SECTIONS | U7: 6.5 | AA7: 1575 | AB7: 4 | AD7: 1995 | AE7: 12 | AF7: 48
D8: - | E8: SIGN | F8: S5 | G8: L5 | H8: 18.5 | I8: =IF($E8="SIGNAL",INDEX('MAST ARM HEIGHT'!K3:K10,COUNTIF($E4:$E8,"SIGNAL")),"-") -> - | J8: 54 | K8: 18 | L8: 6.75 | M8: 124.875 | T8: 3 SECTIONS | U8: 8.7
E9: - | F9: =IF($E9="SIGNAL",INDEX('MAST ARM HEIGHT'!J3:J10,COUNTIF($E4:$E9,"SIGNAL")),"-") -> - | G9: L6 | H9: =IF($E9="SIGNAL",INDEX('MAST ARM HEIGHT'!M3:M10,COUNTIF($E4:$E9,"SIGNAL")),"-") -> - | I9: =IF($E9="SIGNAL",INDEX('MAST ARM HEIGHT'!K3:K10,COUNTIF($E4:$E9,"SIGNAL")),"-") -> - | J9: - | K9: - | L9: - | M9: - | T9: 4 SECTIONS | U9: 11 | AA9: 1995 | AB9: 12 | AD9: 1575 | AE9: 4 | AF9: 38
E10: - | F10: =IF($E10="SIGNAL",INDEX('MAST ARM HEIGHT'!J3:J10,COUNTIF($E4:$E10,"SIGNAL")),"-") -> - | G10: L7 | H10: =IF($E10="SIGNAL",INDEX('MAST ARM HEIGHT'!M3:M10,COUNTIF($E4:$E10,"SIGNAL")),"-") -> - | I10: =IF($E10="SIGNAL",INDEX('MAST ARM HEIGHT'!K3:K10,COUNTIF($E4:$E10,"SIGNAL")),"-") -> - | J10: - | K10: - | L10: - | M10: - | T10: 5 SECTIONS - CLUSTER | U10: 12.4 | AA10: 2380 | AB10: 13
E11: - | F11: =IF($E11="SIGNAL",INDEX('MAST ARM HEIGHT'!J3:J10,COUNTIF($E4:$E11,"SIGNAL")),"-") -> - | G11: L8 | H11: =IF($E11="SIGNAL",INDEX('MAST ARM HEIGHT'!M3:M10,COUNTIF($E4:$E11,"SIGNAL")),"-") -> - | I11: =IF($E11="SIGNAL",INDEX('MAST ARM HEIGHT'!K3:K10,COUNTIF($E4:$E11,"SIGNAL")),"-") -> - | J11: - | K11: - | L11: - | M11: - | T11: 5 SECTIONS - MIXED | U11: 11.4 | AA11: 2641 | AB11: 14 | AD11: 787.5 | AE11: 2 | AF11: 32
A12: ='MAST ARM HEIGHT'!A11 -> SP-2 | B12: ='MAST ARM HEIGHT'!B11 -> A | C12: 1 | D12: 15 | E12: SIGNAL | F12: =IF($E12="SIGNAL",INDEX('MAST ARM HEIGHT'!J11:J15,COUNTIF($E12,"SIGNAL")),"-") -> 2A | G12: L1 | H12: =IF($E12="SIGNAL",INDEX('MAST ARM HEIGHT'!M11:M15,COUNTIF($E12,"SIGNAL")),"-") -> 24 | I12: =IF($E12="SIGNAL",INDEX('MAST ARM HEIGHT'!K11:K15,COUNTIF($E12,"SIGNAL")),"-") -> 3 SECTIONS | J12: - | K12: - | L12: 8.7 | M12: 208.8 | N12: 39 | O12: =IF(N12="-","-",IF(N12>59,"YES","NO")) -> NO | P12: =IF($C12=2,(D12+D16)*3+(SUMIF($M12:$M19,"<>-")),IF($C12=1,$D12*3+(SUMIF($M12:$M19,"<>-")),IF($C12=0,SUMIF($M12:$M19,"<>-"),"-"))) -> 777.625 | Q12: =IF($P12="-","-",IF($P12<=$Z$24,VLOOKUP($Z$24,$AA$4:$AB$11,2),$AA$24)) -> 12 | S12: - | T12: 5 SECTIONS - VERTICAL | U12: 13.3
E13: SIGNAL | F13: =IF($E13="SIGNAL",INDEX('MAST ARM HEIGHT'!J11:J15,COUNTIF($E12:$E13,"SIGNAL")),"-") -> 2B | G13: L2 | H13: =IF($E13="SIGNAL",INDEX('MAST ARM HEIGHT'!M11:M15,COUNTIF($E12:$E13,"SIGNAL")),"-") -> 36 | I13: =IF($E13="SIGNAL",INDEX('MAST ARM HEIGHT'!K11:K15,COUNTIF($E12:$E13,"SIGNAL")),"-") -> 3 SECTIONS | J13: - | K13: - | L13: 8.7 | M13: 313.2 | S13: SIGNAL
E14: SIGN | F14: S4 | G14: L3 | H14: 3.5 | I14: =IF($E14="SIGNAL",INDEX('MAST ARM HEIGHT'!K11:K15,COUNTIF($E12:$E14,"SIGNAL")),"-") -> - | J14: 54 | K14: 18 | L14: 6.75 | M14: 23.625 | S14: SIGN
E15: SIGN | F15: S1 | G15: L4 | H15: 11 | I15: =IF($E15="SIGNAL",INDEX('MAST ARM HEIGHT'!K11:K15,COUNTIF($E12:$E15,"SIGNAL")),"-") -> - | J15: 102 | K15: 24 | L15: 17 | M15: 187
D16: - | E16: - | F16: =IF($E16="SIGNAL",INDEX('MAST ARM HEIGHT'!J10:J14,COUNTIF($E11:$E16,"SIGNAL")),"-") -> - | G16: L5 | H16: =IF($E16="SIGNAL",INDEX('MAST ARM HEIGHT'!M12:M16,COUNTIF($E13:$E16,"SIGNAL")),"-") -> - | I16: =IF($E16="SIGNAL",INDEX('MAST ARM HEIGHT'!K11:K15,COUNTIF($E12:$E16,"SIGNAL")),"-") -> - | J16: - | K16: - | L16: - | M16: - | S16: -
E17: - | F17: =IF($E17="SIGNAL",INDEX('MAST ARM HEIGHT'!J11:J15,COUNTIF($E12:$E17,"SIGNAL")),"-") -> - | G17: L6 | H17: =IF($E17="SIGNAL",INDEX('MAST ARM HEIGHT'!M11:M15,COUNTIF($E12:$E17,"SIGNAL")),"-") -> - | I17: =IF($E17="SIGNAL",INDEX('MAST ARM HEIGHT'!K11:K15,COUNTIF($E12:$E17,"SIGNAL")),"-") -> - | J17: - | K17: - | L17: - | M17: - | S17: 0
E18: - | F18: =IF($E18="SIGNAL",INDEX('MAST ARM HEIGHT'!J11:J15,COUNTIF($E12:$E18,"SIGNAL")),"-") -> - | G18: L7 | H18: =IF($E18="SIGNAL",INDEX('MAST ARM HEIGHT'!M11:M15,COUNTIF($E12:$E18,"SIGNAL")),"-") -> - | I18: =IF($E18="SIGNAL",INDEX('MAST ARM HEIGHT'!K11:K15,COUNTIF($E12:$E18,"SIGNAL")),"-") -> - | J18: - | K18: - | L18: - | M18: - | S18: 1
E19: - | F19: =IF($E19="SIGNAL",INDEX('MAST ARM HEIGHT'!J11:J15,COUNTIF($E12:$E19,"SIGNAL")),"-") -> - | G19: L8 | H19: =IF($E19="SIGNAL",INDEX('MAST ARM HEIGHT'!M11:M15,COUNTIF($E12:$E19,"SIGNAL")),"-") -> - | I19: =IF($E19="SIGNAL",INDEX('MAST ARM HEIGHT'!K11:K15,COUNTIF($E12:$E19,"SIGNAL")),"-") -> - | J19: - | K19: - | L19: - | M19: - | S19: 2
A20: ='MAST ARM HEIGHT'!A16 -> SP-2 | B20: ='MAST ARM HEIGHT'!B16 -> B | C20: 1 | D20: 15 | E20: SIGNAL | F20: =IF($E20="SIGNAL",INDEX('MAST ARM HEIGHT'!J16:J20,COUNTIF($E20,"SIGNAL")),"-") -> 4A | G20: L1 | H20: =IF($E20="SIGNAL",INDEX('MAST ARM HEIGHT'!M16:M20,COUNTIF($E20,"SIGNAL")),"-") -> 25 | I20: =IF($E20="SIGNAL",INDEX('MAST ARM HEIGHT'!K16:K20,COUNTIF($E20,"SIGNAL")),"-") -> 3 SECTIONS | J20: - | K20: - | L20: 8.7 | M20: 217.5 | N20: 46 | O20: =IF(N20="-","-",IF(N20>59,"YES","NO")) -> NO | P20: =IF($C20=2,(D20+D24)*3+(SUMIF($M20:$M27,"<>-")),IF($C20=1,$D20*3+(SUMIF($M20:$M27,"<>-")),IF($C20=0,SUMIF($M20:$M27,"<>-"),"-"))) -> 1068.366667 | Q20: =IF($P20="-","-",IF($P20<=$Z$25,VLOOKUP($Z$25,$AA$4:$AB$11,2),$AA$25)) -> 12
E21: SIGNAL | F21: =IF($E21="SIGNAL",INDEX('MAST ARM HEIGHT'!J16:J20,COUNTIF($E20:$E21,"SIGNAL")),"-") -> 4B | G21: L2 | H21: =IF($E21="SIGNAL",INDEX('MAST ARM HEIGHT'!M16:M20,COUNTIF($E20:$E21,"SIGNAL")),"-") -> 33 | I21: =IF($E21="SIGNAL",INDEX('MAST ARM HEIGHT'!K16:K20,COUNTIF($E20:$E21,"SIGNAL")),"-") -> 3 SECTIONS | J21: - | K21: - | L21: 8.7 | M21: 287.1
E22: SIGNAL | F22: 4C | G22: L3 | H22: =IF($E22="SIGNAL",INDEX('MAST ARM HEIGHT'!M16:M20,COUNTIF($E20:$E22,"SIGNAL")),"-") -> 43 | I22: =IF($E22="SIGNAL",INDEX('MAST ARM HEIGHT'!K16:K20,COUNTIF($E20:$E22,"SIGNAL")),"-") -> 3 SECTIONS | J22: - | K22: - | L22: 8.7 | M22: 374.1 | S22: - | Y22: Pole | Z22: Ref 1 (length) | AA22: Ref 2 (design no)
E23: SIGN | F23: S2 | G23: L4 | H23: 7 | I23: =IF($E23="SIGNAL",INDEX('MAST ARM HEIGHT'!K16:K20,COUNTIF($E20:$E23,"SIGNAL")),"-") -> - | J23: 124 | K23: 24 | L23: 20.66666667 | M23: 144.6666667 | S23: 1 | Y23: 1 | Z23: =INDEX(AD5:AD12,MATCH(N4,$AF$5:$AF$12,-1)) -> 2380 | AA23: =INDEX($AE$5:$AE$12,MATCH($P4,$AD$5:$AD$12,-1)) -> 12
D24: - | E24: - | F24: =IF($E24="SIGNAL",INDEX('MAST ARM HEIGHT'!J17:J21,COUNTIF($E21:$E24,"SIGNAL")),"-") -> - | G24: L5 | H24: =IF($E24="SIGNAL",INDEX('MAST ARM HEIGHT'!M17:M21,COUNTIF($E21:$E24,"SIGNAL")),"-") -> - | I24: =IF($E24="SIGNAL",INDEX('MAST ARM HEIGHT'!K16:K20,COUNTIF($E20:$E24,"SIGNAL")),"-") -> - | J24: - | K24: - | L24: - | M24: - | S24: 2 | Y24: 2 | Z24: =INDEX(AD5:AD12,MATCH(N12,$AF$5:$AF$12,-1)) -> 1995 | AA24: =INDEX($AE$5:$AE$12,MATCH($P12,$AD$5:$AD$12,-1)) -> 2
E25: - | F25: =IF($E25="SIGNAL",INDEX('MAST ARM HEIGHT'!J16:J20,COUNTIF($E20:$E25,"SIGNAL")),"-") -> - | G25: L6 | H25: =IF($E25="SIGNAL",INDEX('MAST ARM HEIGHT'!M16:M20,COUNTIF($E20:$E25,"SIGNAL")),"-") -> - | I25: =IF($E25="SIGNAL",INDEX('MAST ARM HEIGHT'!K16:K20,COUNTIF($E20:$E25,"SIGNAL")),"-") -> - | J25: - | K25: - | L25: - | M25: - | S25: 3 | Y25: 3 | Z25: =INDEX(AD5:AD12,MATCH(N20,$AF$5:$AF$12,-1)) -> 1995 | AA25: =INDEX($AE$5:$AE$12,MATCH($P20,$AD$5:$AD$12,-1)) -> 4
E26: - | F26: =IF($E26="SIGNAL",INDEX('MAST ARM HEIGHT'!J16:J20,COUNTIF($E20:$E26,"SIGNAL")),"-") -> - | G26: L7 | H26: =IF($E26="SIGNAL",INDEX('MAST ARM HEIGHT'!M16:M20,COUNTIF($E20:$E26,"SIGNAL")),"-") -> - | I26: =IF($E26="SIGNAL",INDEX('MAST ARM HEIGHT'!K16:K20,COUNTIF($E20:$E26,"SIGNAL")),"-") -> - | J26: - | K26: - | L26: - | M26: - | S26: 4 | Y26: 4 | Z26: =INDEX(AD5:AD12,MATCH(N28,$AF$5:$AF$12,-1)) ->  | AA26: =INDEX($AE$5:$AE$12,MATCH($P28,$AD$5:$AD$12,-1)) -> 
E27: - | F27: =IF($E27="SIGNAL",INDEX('MAST ARM HEIGHT'!J16:J20,COUNTIF($E20:$E27,"SIGNAL")),"-") -> - | G27: L8 | H27: =IF($E27="SIGNAL",INDEX('MAST ARM HEIGHT'!M16:M20,COUNTIF($E20:$E27,"SIGNAL")),"-") -> - | I27: =IF($E27="SIGNAL",INDEX('MAST ARM HEIGHT'!K16:K20,COUNTIF($E20:$E27,"SIGNAL")),"-") -> - | J27: - | K27: - | L27: - | M27: -
A28: ='MAST ARM HEIGHT'!A21 -> - | B28: ='MAST ARM HEIGHT'!B21 -> - | C28: - | D28: - | E28: - | F28: =IF($E28="SIGNAL",INDEX('MAST ARM HEIGHT'!J21:J25,COUNTIF($E28,"SIGNAL")),"-") -> - | G28: L1 | H28: =IF($E28="SIGNAL",INDEX('MAST ARM HEIGHT'!M21:M25,COUNTIF($E28,"SIGNAL")),"-") -> - | I28: =IF($E28="SIGNAL",INDEX('MAST ARM HEIGHT'!K21:K25,COUNTIF($E28,"SIGNAL")),"-") -> - | J28: - | K28: - | L28: - | M28: - | N28: - | O28: =IF(N28="-","-",IF(N28>59,"YES","NO")) -> - | P28: =IF($C28=2,(D28+D32)*3+(SUMIF($M28:$M35,"<>-")),IF($C28=1,$D28*3+(SUMIF($M28:$M35,"<>-")),IF($C28=0,SUMIF($M28:$M35,"<>-"),"-"))) -> - | Q28: =IF($P28="-","-",IF($P28<=$Z$26,VLOOKUP($Z$26,$AA$4:$AB$11,2),$AA$26)) -> - | S28: -
E29: - | F29: =IF($E29="SIGNAL",INDEX('MAST ARM HEIGHT'!J21:J25,COUNTIF($E28:$E29,"SIGNAL")),"-") -> - | G29: L2 | H29: =IF($E29="SIGNAL",INDEX('MAST ARM HEIGHT'!M21:M25,COUNTIF($E28:$E29,"SIGNAL")),"-") -> - | I29: =IF($E29="SIGNAL",INDEX('MAST ARM HEIGHT'!K21:K25,COUNTIF($E28:$E29,"SIGNAL")),"-") -> - | J29: - | K29: - | L29: - | M29: - | S29: A
E30: - | F30: =IF($E30="SIGNAL",INDEX('MAST ARM HEIGHT'!J21:J25,COUNTIF($E28:$E30,"SIGNAL")),"-") -> - | G30: L3 | H30: =IF($E30="SIGNAL",INDEX('MAST ARM HEIGHT'!M21:M25,COUNTIF($E28:$E30,"SIGNAL")),"-") -> - | I30: =IF($E30="SIGNAL",INDEX('MAST ARM HEIGHT'!K21:K25,COUNTIF($E28:$E30,"SIGNAL")),"-") -> - | J30: - | K30: - | L30: - | M30: - | S30: B
E31: - | F31: =IF($E31="SIGNAL",INDEX('MAST ARM HEIGHT'!J21:J25,COUNTIF($E28:$E31,"SIGNAL")),"-") -> - | G31: L4 | H31: =IF($E31="SIGNAL",INDEX('MAST ARM HEIGHT'!M21:M25,COUNTIF($E28:$E31,"SIGNAL")),"-") -> - | I31: =IF($E31="SIGNAL",INDEX('MAST ARM HEIGHT'!K21:K25,COUNTIF($E28:$E31,"SIGNAL")),"-") -> - | J31: - | K31: - | L31: - | M31: -
D32: - | E32: - | F32: =IF($E32="SIGNAL",INDEX('MAST ARM HEIGHT'!J21:J25,COUNTIF($E28:$E32,"SIGNAL")),"-") -> - | G32: L5 | H32: =IF($E32="SIGNAL",INDEX('MAST ARM HEIGHT'!M21:M25,COUNTIF($E28:$E32,"SIGNAL")),"-") -> - | I32: =IF($E32="SIGNAL",INDEX('MAST ARM HEIGHT'!K21:K25,COUNTIF($E28:$E32,"SIGNAL")),"-") -> - | J32: - | K32: - | L32: - | M32: -
E33: - | F33: =IF($E33="SIGNAL",INDEX('MAST ARM HEIGHT'!J21:J25,COUNTIF($E28:$E33,"SIGNAL")),"-") -> - | G33: L6 | H33: =IF($E33="SIGNAL",INDEX('MAST ARM HEIGHT'!M21:M25,COUNTIF($E28:$E33,"SIGNAL")),"-") -> - | I33: =IF($E33="SIGNAL",INDEX('MAST ARM HEIGHT'!K21:K25,COUNTIF($E28:$E33,"SIGNAL")),"-") -> - | J33: - | K33: - | L33: - | M33: -
E34: - | F34: =IF($E34="SIGNAL",INDEX('MAST ARM HEIGHT'!J21:J25,COUNTIF($E28:$E34,"SIGNAL")),"-") -> - | G34: L7 | H34: =IF($E34="SIGNAL",INDEX('MAST ARM HEIGHT'!M21:M25,COUNTIF($E28:$E34,"SIGNAL")),"-") -> - | I34: =IF($E34="SIGNAL",INDEX('MAST ARM HEIGHT'!K21:K25,COUNTIF($E28:$E34,"SIGNAL")),"-") -> - | J34: - | K34: - | L34: - | M34: -
E35: - | F35: =IF($E35="SIGNAL",INDEX('MAST ARM HEIGHT'!J21:J25,COUNTIF($E28:$E35,"SIGNAL")),"-") -> - | G35: L8 | H35: =IF($E35="SIGNAL",INDEX('MAST ARM HEIGHT'!M21:M25,COUNTIF($E28:$E35,"SIGNAL")),"-") -> - | I35: =IF($E35="SIGNAL",INDEX('MAST ARM HEIGHT'!K21:K25,COUNTIF($E28:$E35,"SIGNAL")),"-") -> - | J35: - | K35: - | L35: - | M35: -
... 1 more rows

Sheet 2 ARM DESIGN NO.
A1: SUPPORT NO. | B1: ARM | C1: DESIGN NO. | D1: POLE SIZE REQ. | E1: POLE DESIGNATION
A2: SP-2 | B2: A | C2: 12 | D2: =VLOOKUP(SUMIFS($N$3:$N$67,$K$3:$K$67,C2,$L$3:$L$67,C3),$G$14:$H$26,2) -> D | E2: =IF(D2="-","-",VLOOKUP(D2,$P$3:$Q$14,2,FALSE)) -> TC-12.31 DES 10 | G2: - | H2: - | I2: - | K2: A | L2: B | M2: SIZE | N2: FOR VLOOKUP
B3: B | C3: 12 | G3: SP-1 | H3: A | K3: - | L3: - | M3: - | N3: 100 | P3: A | Q3: TC-81.22 DES 4
A4: - | B4: - | C4: - | D4: =VLOOKUP(SUMIFS($N$3:$N$67,$K$3:$K$67,C4,$L$3:$L$67,C5),$G$14:$H$26,2) -> - | E4: =IF(D4="-","-",VLOOKUP(D4,$P$3:$Q$14,2,FALSE)) -> - | G4: SP-2 | H4: B | I4: 2 | K4: 2 | L4: 2 | M4: A | N4: 101 | P4: B | Q4: TC-81.22 DES 12
B5: - | C5: - | G5: SP-3 | H5: C | K5: 4 | L5: 2 | M5: B | N5: 102 | P5: C | Q5: TC-12.31 DES 6
A6: - | B6: - | C6: - | D6: =VLOOKUP(SUMIFS($N$3:$N$67,$K$3:$K$67,C6,$L$3:$L$67,C7),$G$14:$H$26,2) -> - | E6: =IF(D6="-","-",VLOOKUP(D6,$P$3:$Q$14,2,FALSE)) -> - | G6: SP-4 | H6: D | I6: 4 | K6: 12 | L6: 2 | M6: C | N6: 103 | P6: D | Q6: TC-12.31 DES 10
B7: - | C7: - | G7: SP-5 | K7: 13 | L7: 2 | M7: D | N7: 104 | P7: E | Q7: TC-12.31 DES 12
A8: - | B8: - | C8: - | D8: =VLOOKUP(SUMIFS($N$3:$N$67,$K$3:$K$67,C8,$L$3:$L$67,C9),$G$14:$H$26,2) -> - | E8: =IF(D8="-","-",VLOOKUP(D8,$P$3:$Q$14,2,FALSE)) -> - | G8: SP-6 | I8: 12 | K8: 14 | L8: 2 | M8: D | N8: 104
B9: - | C9: - | G9: SP-7 | I9: 13 | K9: 4 | L9: 4 | M9: C | N9: 103
G10: SP-8 | I10: 14 | K10: 12 | L10: 4 | M10: C | N10: 103
G11: SP-9 | K11: 13 | L11: 4 | M11: D | N11: 104
G12: SP-10 | K12: 14 | L12: 4 | M12: D | N12: 104
K13: 12 | L13: 12 | M13: D | N13: 104
G14: 100 | H14: - | K14: 13 | L14: 12 | M14: D | N14: 104
G15: 101 | H15: A | K15: 14 | L15: 12 | M15: D | N15: 104
G16: 102 | H16: B | K16: 13 | L16: 13 | M16: D | N16: 104
G17: 103 | H17: C | K17: 14 | L17: 13 | M17: E | N17: 105
G18: 104 | H18: D | K18: 14 | L18: 14 | M18: E | N18: 105
G19: 105 | H19: E
